bitfinex/quotes_SOLUSD_20241210
["timestamp","ask_amount","ask_price","bid_price","bid_amount"]
[1733801519149,8.3221,210.5,210.11,10.0]
[1733801519150,8.3221,210.5,210.2,42.48824018]
[1733801519841,8.3221,210.5,210.18,42.48824018]
[1733801520544,8.3221,210.5,210.12,42.48824018]
[1733801520545,12.5238,210.42,210.12,42.48824018]
[1733801520730,10.0,210.41,210.1,42.48824018]
[1733801521321,12.5238,210.42,210.12,42.48824018]
[1733801521525,12.5238,210.42,210.14,43.35999208]
[1733801522134,12.5238,210.42,210.2,42.48824018]
[1733801522451,14.41,210.37,210.14,0.8717519]
[1733801522628,14.41,210.34,210.14,0.8717519]
[1733801523222,20.8459,210.33,209.9,1.85782617]
[1733801523426,14.41,210.26,209.83,10.0]
[1733801523645,14.41,210.26,209.93,42.48824018]
[1733801524151,14.41,210.26,209.97,42.48824018]
[1733801524352,12.5238,210.29,209.93,42.48824018]
[1733801524353,14.41,210.24,209.93,42.48824018]
[1733801524654,14.41,210.18,209.89,42.48824018]
[1733801525031,8.3221,210.19,209.95,42.48824018]
[1733801525246,8.3221,210.19,210.01,42.48824018]
[1733801525751,20.8459,210.29,210.07,42.48824018]
[1733801525951,14.41,210.28,210.03,42.48824018]
[1733801526249,20.8459,210.29,210.01,42.48824018]
[1733801526449,20.8459,210.29,209.9,42.48824018]
[1733801526450,20.8459,210.29,210.05,42.48824018]
[1733801526637,20.8459,210.29,210.09,42.48824018]
[1733801526836,20.8459,210.29,210.07,42.48824018]
[1733801527223,20.8459,210.29,210.13,42.48824018]
[1733801527427,20.8459,210.29,210.17,42.48824018]
[1733801527762,20.8459,210.29,210.1,42.48824018]
[1733801527763,12.5238,210.39,210.21,42.48824018]
[1733801528137,12.5238,210.39,210.15,354.48824018]
[1733801528343,26.9338,210.39,210.1,42.48824018]
[1733801528545,12.5238,210.39,210.16,42.48824018]
[1733801528763,12.5238,210.39,210.18,42.48824018]
[1733801529058,12.5238,210.39,210.14,42.48824018]
[1733801529261,26.9338,210.39,210.14,42.48824018]
[1733801529562,26.9338,210.39,210.08,42.48824018]
[1733801529563,14.41,210.38,210.08,42.48824018]
[1733801529859,12.5238,210.39,210.22,42.48824018]
[1733801530061,12.5238,210.39,210.28,42.48824018]
[1733801530224,8.3221,210.42,210.3,42.48824018]
[1733801530424,12.5238,210.49,210.34,42.48824018]
[1733801530653,12.5238,210.49,210.32,42.48824018]
[1733801530860,12.5238,210.49,210.24,42.48824018]
[1733801531066,12.5238,210.49,210.04,47.9431441]
[1733801531238,12.5238,210.49,210.09,42.48824018]
[1733801531239,10.0,210.39,210.09,42.48824018]
[1733801531441,10.0,210.39,210.07,42.48824018]
[1733801531442,12.8206,210.38,210.07,42.48824018]
[1733801531766,12.8206,210.38,210.04,0.3333441]
[1733801531767,12.8206,210.38,210.11,42.48824018]
[1733801531927,12.8206,210.38,210.06,42.48824018]
[1733801532134,12.8206,210.38,210.14,42.48824018]
[1733801532354,12.8206,210.38,210.17,42.48824018]
[1733801532563,12.8206,210.38,210.15,42.48824018]
[1733801532858,12.8206,210.38,210.17,42.48824018]
[1733801533062,12.8206,210.38,210.23,42.48824018]
[1733801533251,12.8206,210.38,210.1,42.48824018]
[1733801533252,12.8206,210.38,210.25,42.48824018]
[1733801533456,12.8206,210.38,210.27,42.48824018]
[1733801533844,12.8206,210.38,210.23,42.48824018]
[1733801534041,8.3221,210.43,210.27,42.48824018]
[1733801534240,8.3221,210.43,210.25,42.48824018]
[1733801534446,8.3221,210.43,210.21,42.48824018]
[1733801534662,8.3221,210.43,210.19,42.48824018]
[1733801535156,8.3221,210.43,210.23,42.48824018]
[1733801535639,8.3221,210.43,210.21,42.48824018]
[1733801536039,8.3221,210.43,210.12,10.0]
[1733801536242,8.3221,210.43,210.24,42.48824018]
[1733801536645,8.3221,210.43,210.12,10.0]
[1733801536646,8.3221,210.43,210.26,42.48824018]
[1733801536988,8.3221,210.43,210.3,42.48824018]
[1733801537474,8.3221,210.43,210.28,42.48824018]
[1733801537775,8.3221,210.43,210.24,42.48824018]
[1733801537944,8.3221,210.43,210.22,42.48824018]
[1733801538439,8.3221,210.43,210.04,10.3333441]
[1733801538440,10.0,210.42,210.15,42.48824018]
[1733801538646,8.3221,210.43,210.11,42.48824018]
[1733801538870,8.3221,210.43,210.17,42.48824018]
[1733801539244,8.3221,210.43,210.15,42.48824018]
[1733801539569,14.41,210.39,210.1,42.48824018]
[1733801539780,9.9999,210.36,210.1,42.48824018]
[1733801539949,10.0,210.34,210.08,42.48824018]
[1733801540271,36.704,210.32,210.06,42.48824018]
[1733801540477,14.41,210.3,210.04,42.82158428]
[1733801540672,12.35487318,210.31,210.04,0.3333441]
[1733801540971,8.2925,210.31,210.1,42.48824018]
[1733801541273,12.294,210.32,210.1,42.48824018]
[1733801541274,12.294,210.32,210.21,42.48824018]
[1733801541450,12.294,210.42,210.23,42.48824018]
[1733801541648,12.294,210.42,210.1,42.48824018]
[1733801541649,12.294,210.42,210.21,42.48824018]
[1733801542071,12.294,210.42,210.19,42.48824018]
[1733801542371,14.41,210.39,210.09,42.48824018]
[1733801542572,14.41,210.39,210.07,42.48824018]
[1733801542880,14.41,210.33,210.05,42.48824018]
[1733801543039,14.41,210.33,210.04,0.3333441]
[1733801543040,9.9999,210.26,210.04,0.3333441]
[1733801543243,4.06237318,210.28,210.04,0.3333441]
[1733801543244,14.41,210.25,210.04,0.3333441]
[1733801543475,14.41,210.21,210.04,0.3333441]
[1733801544267,14.41,210.21,209.84,10.0]
[1733801544268,14.41,210.19,209.95,42.48824018]
[1733801544582,12.294,210.2,209.99,42.48824018]
[1733801544753,12.294,210.2,210.09,42.48824018]
[1733801545075,8.2925,210.31,210.09,42.48824018]
[1733801545281,12.294,210.3,210.13,42.48824018]
[1733801545472,12.294,210.3,210.17,42.48824018]
[1733801545877,20.3632,210.48,210.23,42.48824018]
[1733801546049,20.3632,210.48,210.29,42.48824018]
[1733801546255,20.3632,210.48,210.31,42.48824018]
[1733801546753,20.3632,210.48,210.29,42.48824018]
[1733801547182,20.3632,210.48,210.25,42.48824018]
[1733801547554,20.3632,210.48,210.23,42.48824018]
[1733801547778,14.41,210.47,210.25,42.48824018]
[1733801548191,14.41,210.47,210.21,42.48824018]
[1733801548349,9.9999,210.46,210.19,42.48824018]
[1733801548554,14.41,210.43,210.12,42.48824018]
[1733801548785,14.41,210.41,210.14,42.48824018]
[1733801549080,20.3632,210.48,210.24,42.48824018]
[1733801549258,20.3632,210.48,210.26,42.48824018]
[1733801549755,20.3632,210.48,210.2,42.48824018]
[1733801549756,20.3632,210.48,210.3,42.48824018]
[1733801550449,12.2657,210.48,210.36,42.48824018]
[1733801550655,12.2657,210.48,210.38,42.48824018]
[1733801550883,12.2657,210.67,210.43,42.48824018]
[1733801551290,14.41,210.66,210.37,42.48824018]
[1733801551459,14.41,210.64,210.35,42.48824018]
[1733801551852,14.41,210.64,210.37,42.48824018]
[1733801552160,14.41,210.62,210.35,42.48824018]
[1733801552768,20.0,210.53,210.37,42.48824018]
[1733801552983,12.2657,210.67,210.43,42.48824018]
[1733801553282,12.2657,210.67,210.33,21.886]
[1733801553283,22.2657,210.67,210.39,42.48824018]
[1733801553664,12.2657,210.67,210.39,42.48824018]
[1733801553862,14.41,210.61,210.21,20.0]
[1733801554063,14.41,210.63,210.33,42.48824018]
[1733801554363,12.2657,210.67,210.37,42.48824018]
[1733801554581,12.2657,210.67,210.32,10.0]
[1733801554582,12.2657,210.67,210.45,42.48824018]
[1733801554778,12.2657,210.67,210.41,42.48824018]
[1733801555081,14.41,210.66,210.39,42.48824018]
[1733801555467,12.2657,210.67,210.44,42.48824018]
[1733801555884,0.12549,210.55,210.44,42.48824018]
[1733801556081,0.12549,210.55,210.42,42.48824018]
[1733801556277,12.2657,210.67,210.44,42.48824018]
[1733801556483,12.2657,210.67,210.4,42.48824018]
[1733801556703,20.0,210.53,210.19,18.2062]
[1733801556996,20.0,210.53,210.3,42.48824018]
[1733801557160,34.7732,210.52,210.24,42.48824018]
[1733801557490,20.3632,210.52,210.33,42.48824018]
[1733801557966,20.3632,210.52,210.31,42.48824018]
[1733801558166,20.3632,210.52,210.29,42.48824018]
[1733801558376,34.7732,210.52,210.27,42.48824018]
[1733801558578,34.7732,210.52,210.25,42.48824018]
[1733801558782,20.3632,210.52,210.27,42.48824018]
[1733801558965,20.3632,210.52,210.29,42.48824018]
[1733801559369,20.3632,210.52,210.31,42.48824018]
[1733801559783,20.3632,210.52,210.37,42.48824018]
[1733801559988,20.3632,210.63,210.41,42.48824018]
[1733801560893,20.3632,210.63,210.39,42.48824018]
[1733801561061,20.3632,210.63,210.37,42.48824018]
[1733801561265,34.7732,210.63,210.37,42.48824018]
[1733801561570,20.3632,210.63,210.41,42.48824018]
[1733801561770,20.3632,210.63,210.37,42.48824018]
[1733801562171,20.3632,210.63,210.39,42.48824018]
[1733801562558,20.3632,210.63,210.45,42.48824018]
[1733801562763,20.3632,210.63,210.48,42.48824018]
[1733801562962,20.3632,210.63,210.44,42.48824018]
[1733801563385,20.3632,210.63,210.46,42.48824018]
[1733801564189,20.3632,210.63,210.4,42.48824018]
[1733801564190,20.3632,210.63,210.48,42.48824018]
[1733801564388,12.2657,210.63,210.5,42.48824018]
[1733801565188,12.2657,210.63,210.48,42.48824018]
[1733801565786,19.6477,210.73,210.59,42.48824018]
[1733801565963,0.7706175,210.75,210.61,42.48824018]
[1733801566159,0.7706175,210.75,210.63,42.48824018]
[1733801566386,0.7706175,210.75,210.65,42.48824018]
[1733801566568,0.7706175,210.75,210.74,42.48824018]
[1733801568002,0.7706175,210.75,210.74,52.48824018]
[1733801568202,0.7706175,210.75,210.74,42.48824018]
[1733801568511,57.76855762,210.82,210.76,10.0]
[1733801568808,7.34766212,210.88,210.83,10.0]
[1733801569014,7.34766212,210.88,210.86,42.48824018]
[1733801569394,7.34766212,210.88,210.86,354.48824018]
[1733801569791,7.34766212,210.88,210.86,406.97648036]
[1733801570005,7.34766212,210.88,210.86,354.48824018]
[1733801570210,0.7706175,211.03,210.88,10.0]
[1733801570445,0.7706175,211.03,210.98,42.48824018]
[1733801571113,0.7706175,211.03,210.89,52.48824018]
[1733801571114,0.7706175,211.03,211.02,42.48824018]
[1733801571814,12.1437,211.29,211.02,42.48824018]
[1733801572014,10.0,211.26,210.88,12.452]
[1733801572197,10.0,211.14,210.82,29.05894388]
[1733801572387,9.9999,211.13,210.84,42.48824018]
[1733801572590,10.0,211.09,210.82,71.54718406]
[1733801572922,10.0,211.02,210.82,29.05894388]
[1733801573121,10.0,210.99,210.82,12.67564388]
[1733801573309,24.41,210.99,210.82,12.67564388]
[1733801573817,20.0,211.0,210.82,12.67564388]
[1733801573990,10.0,210.98,210.82,12.67564388]
[1733801574192,20.0,211.0,210.82,12.67564388]
[1733801574193,30.0,211.0,210.82,12.67564388]
[1733801574394,24.41,210.96,210.66,42.48824018]
[1733801574626,10.0,210.97,210.68,42.48824018]
[1733801574791,20.0,211.0,210.7,42.48824018]
[1733801574996,20.0,211.0,210.74,42.48824018]
[1733801575509,12.1437,211.04,210.8,42.48824018]
[1733801575699,12.1437,211.04,210.78,42.48824018]
[1733801576097,12.1437,211.04,210.8,42.48824018]
[1733801576307,12.1437,211.04,210.84,42.48824018]
[1733801576622,12.1437,211.17,210.9,42.48824018]
[1733801576830,12.1437,211.17,210.88,42.48824018]
[1733801577027,12.1437,211.17,210.9,42.48824018]
[1733801578226,32.1437,211.17,210.9,42.48824018]
[1733801578394,12.1437,211.17,210.92,42.48824018]
[1733801578595,12.1437,211.17,210.9,42.48824018]
[1733801578815,12.1437,211.17,210.88,42.48824018]
[1733801579598,12.1437,211.17,210.84,42.48824018]
[1733801579599,10.0,211.12,210.84,42.48824018]
[1733801579799,34.24,211.12,210.8,42.48824018]
[1733801580007,34.24,211.12,210.76,42.48824018]
[1733801580008,10.0,211.07,210.76,42.48824018]
[1733801580331,10.0,211.07,210.66,10.0]
[1733801580512,24.24,211.03,210.7,42.48824018]
[1733801580712,16.0877,211.06,210.74,42.48824018]
[1733801580909,10.0,211.01,210.7,42.48824018]
[1733801581313,10.0,210.98,210.68,42.48824018]
[1733801581511,10.0,210.92,210.53,10.0]
[1733801581713,10.0,210.88,210.58,42.48824018]
[1733801581911,247.26267259,210.93,210.58,42.48824018]
[1733801581912,14.24,210.87,210.58,42.48824018]
[1733801582212,14.24,210.87,210.5,52.48824018]
[1733801582213,257.26267259,210.93,210.62,42.48824018]
[1733801582430,247.26277259,210.93,210.62,42.48824018]
[1733801582616,14.24,210.92,210.62,42.48824018]
[1733801582819,22.6283,210.97,210.65,42.48824018]
[1733801583024,12.6283,210.97,210.72,42.48824018]
[1733801583414,10.0,210.93,210.66,312.0]
[1733801583619,14.24,210.94,210.62,42.48824018]
[1733801583821,24.24,210.88,210.58,42.48824018]
[1733801584238,14.24,210.85,210.58,42.48824018]
[1733801584524,20.0,210.86,210.6,42.48824018]
[1733801584907,20.0,210.86,210.58,42.48824018]
[1733801584908,34.24,210.86,210.58,42.48824018]
[1733801585313,20.0,210.86,210.6,42.48824018]
[1733801585546,30.0,210.86,210.56,42.48824018]
[1733801585711,16.0877,210.84,210.52,42.48824018]
[1733801585904,16.0877,210.84,210.56,42.48824018]
[1733801586136,16.0877,210.84,210.54,42.48824018]
[1733801586533,16.0877,210.84,210.5,42.48824018]
[1733801586534,10.0,210.82,210.52,42.48824018]
[1733801586721,14.24,210.8,210.52,42.48824018]
[1733801587031,10.0,210.83,210.46,42.48824018]
[1733801587241,263.35037259,210.84,210.54,42.48824018]
[1733801587242,273.35047259,210.84,210.54,42.48824018]
[1733801587532,16.0877,210.84,210.56,42.48824018]
[1733801587733,16.0877,210.84,210.58,42.48824018]
[1733801588238,16.0877,210.84,210.53,0.23376]
[1733801588239,10.0,210.81,210.53,0.23376]
[1733801588618,253.35047259,210.84,210.53,0.23376]
[1733801588933,253.35047259,210.84,210.55,42.48824018]
[1733801589138,16.0877,210.84,210.57,42.48824018]
[1733801589514,16.0877,210.84,210.57,312.0]
[1733801589849,26.0877,210.84,210.53,0.23376]
[1733801590134,16.0877,210.84,210.53,42.72200018]
[1733801590343,16.0877,210.84,210.53,0.23376]
[1733801590834,20.0,210.8,210.53,0.23376]
[1733801591036,16.0877,210.84,210.57,42.48824018]
[1733801591237,10.0,210.81,210.53,0.23376]
[1733801591739,23.776884,210.55,210.53,0.23376]
[1733801591938,12.6778,210.73,210.53,0.23376]
[1733801592313,0.12549,210.55,210.53,0.23376]
[1733801592975,12.6778,210.73,210.54,42.48824018]
[1733801593133,12.6778,210.73,210.53,0.23376]
[1733801593735,12.6778,210.73,210.56,42.48824018]
[1733801594041,12.6778,210.83,210.58,42.48824018]
[1733801594242,12.6778,210.83,210.54,42.48824018]
[1733801595038,32.6777,210.83,210.53,0.23376]
[1733801595224,12.6778,210.83,210.53,0.23376]
[1733801595534,12.6778,210.83,210.54,42.48824018]
[1733801595746,12.6778,210.83,210.6,42.48824018]
[1733801596049,12.6778,210.96,210.7,42.48824018]
[1733801596249,12.6778,210.96,210.76,42.48824018]
[1733801596834,12.6778,211.09,210.84,42.48824018]
[1733801597036,12.6778,211.09,210.86,42.48824018]
[1733801597238,12.6778,211.09,210.92,42.48824018]
[1733801597468,12.6778,211.09,210.94,42.48824018]
[1733801597763,12.6778,211.09,210.9,42.48824018]
[1733801598061,12.6778,211.09,210.92,42.48824018]
[1733801598269,12.6778,211.09,210.88,42.48824018]
[1733801598574,12.6778,211.09,210.92,42.48824018]
[1733801598733,13.153598,211.18,210.98,42.48824018]
[1733801598932,13.153598,211.18,211.0,42.48824018]
[1733801599366,13.153598,211.18,211.02,42.48824018]
[1733801599537,0.475798,211.18,211.04,42.48824018]
[1733801599739,0.475798,211.18,211.06,42.48824018]
[1733801599943,0.475798,211.18,211.08,42.48824018]
[1733801600671,0.475798,211.18,211.1,42.48824018]
[1733801600962,0.475798,211.18,211.04,42.48824018]
[1733801601462,0.475798,211.18,211.02,50.35274018]
[1733801601758,0.475798,211.18,211.04,42.48824018]
[1733801602057,0.475798,211.18,211.12,42.48824018]
[1733801602359,0.475798,211.18,211.02,50.35274018]
[1733801602660,0.475798,211.18,211.1,42.48824018]
[1733801602865,0.475798,211.18,211.14,42.48824018]
[1733801603232,0.475798,211.18,211.08,42.48824018]
[1733801603453,0.475798,211.18,211.04,42.48824018]
[1733801603654,0.475798,211.18,211.06,42.48824018]
[1733801603832,0.475798,211.18,211.04,42.48824018]
[1733801604249,0.475798,211.18,210.98,42.48824018]
[1733801604456,13.153598,211.18,210.94,42.48824018]
[1733801604641,13.153598,211.18,211.0,42.48824018]
[1733801604840,0.475798,211.18,211.06,42.48824018]
[1733801605036,0.475798,211.18,211.12,42.48824018]
[1733801605258,0.475798,211.18,211.16,42.48824018]
[1733801605653,28.7424613,211.47,211.18,10.0]
[1733801605859,28.7424613,211.47,211.27,42.48824018]
[1733801606056,0.314,211.43,211.23,42.48824018]
[1733801606261,0.314,211.43,211.29,42.48824018]
[1733801606844,0.314,211.43,211.34,42.48824018]
[1733801607075,0.314,211.43,211.36,42.48824018]
[1733801607439,0.314,211.43,211.3,42.48824018]
[1733801607440,0.314,211.43,211.33,42.48824018]
[1733801607634,0.314,211.43,211.31,42.48824018]
[1733801607852,0.314,211.43,211.27,42.48824018]
[1733801608166,0.314,211.43,211.21,42.48824018]
[1733801608373,13.364,211.43,211.19,42.48824018]
[1733801608668,13.364,211.43,211.21,42.48824018]
[1733801608873,13.364,211.43,211.15,42.48824018]
[1733801609039,13.364,211.43,211.03,12.1918]
[1733801609040,19.9999,211.41,211.11,42.48824018]
[1733801609240,10.0,211.37,211.07,42.48824018]
[1733801609551,19.9999,211.33,211.03,42.48824018]
[1733801609858,0.314,211.32,211.03,42.48824018]
[1733801610163,0.314,211.32,211.05,42.48824018]
[1733801610463,13.05,211.28,210.99,42.48824018]
[1733801610662,20.0,211.22,210.95,49.724575]
[1733801610968,10.0,211.21,210.95,7.23633482]
[1733801611167,19.9999,211.16,210.95,7.23633482]
[1733801611379,20.314,211.22,210.95,7.23633482]
[1733801611540,20.314,211.22,210.99,42.48824018]
[1733801611736,9.9999,211.2,210.95,7.23633482]
[1733801611962,10.0,211.18,210.95,7.23633482]
[1733801612350,19.9999,211.18,210.95,7.23633482]
[1733801612557,9.9999,211.21,210.95,7.23633482]
[1733801612754,9.9999,211.19,210.95,7.23633482]
[1733801613069,10.0,211.18,210.95,7.23633482]
[1733801613271,20.314,211.22,210.95,7.23633482]
[1733801613596,10.0,211.14,210.95,7.23633482]
[1733801613881,9.9999,211.19,210.95,7.23633482]
[1733801614170,20.314,211.22,210.95,7.23633482]
[1733801614347,10.0,211.17,210.95,7.23633482]
[1733801614543,20.314,211.22,210.95,7.23633482]
[1733801614743,9.9999,211.17,210.95,7.23633482]
[1733801615074,13.05,211.12,210.95,7.23633482]
[1733801616966,13.364,211.22,210.98,42.48824018]
[1733801617172,23.364,211.22,210.95,7.23633482]
[1733801617477,10.0,211.13,210.95,7.23633482]
[1733801617638,10.0,211.13,210.93,14.40172362]
[1733801617639,9.9999,211.09,210.93,14.40172362]
[1733801617840,13.05,211.12,210.93,14.40172362]
[1733801618072,9.9999,211.08,210.93,14.40172362]
[1733801618276,29.9999,211.07,210.93,14.40172362]
[1733801618583,20.0,211.07,210.93,14.40172362]
[1733801619280,13.05,211.12,210.93,14.40172362]
[1733801621672,12.4801,211.21,210.94,42.48824018]
[1733801622076,12.4801,211.21,210.96,42.48824018]
[1733801622752,12.4801,211.21,211.0,42.48824018]
[1733801622960,12.4801,211.21,211.02,42.48824018]
[1733801623157,12.4801,211.3,211.02,42.48824018]
[1733801623491,12.4801,211.3,211.08,42.48824018]
[1733801623692,12.4801,211.3,211.12,42.48824018]
[1733801623861,14.24,211.38,211.1,42.48824018]
[1733801624182,14.24,211.38,211.08,42.48824018]
[1733801624386,12.4801,211.39,211.08,42.48824018]
[1733801624687,12.4801,211.39,211.1,42.48824018]
[1733801624890,12.4801,211.39,211.12,42.48824018]
[1733801625381,12.4801,211.39,211.16,42.48824018]
[1733801625760,12.4801,211.39,211.18,42.48824018]
[1733801625952,0.709558,211.44,211.18,42.48824018]
[1733801626290,0.709558,211.44,211.2,42.48824018]
[1733801626788,0.709558,211.44,211.2,312.0]
[1733801627363,0.709558,211.44,211.2,354.48824018]
[1733801627564,0.709558,211.44,211.18,42.48824018]
[1733801628084,0.709558,211.44,211.16,7.5715]
[1733801628280,0.709558,211.44,211.16,50.05974018]
[1733801628800,0.709558,211.44,211.22,42.48824018]
[1733801629096,0.709558,211.44,211.22,10.0]
[1733801629284,0.709558,211.44,211.2,52.48824018]
[1733801629285,0.709558,211.44,211.32,42.48824018]
[1733801629788,0.709558,211.44,211.3,42.48824018]
[1733801629977,0.709558,211.44,211.32,42.48824018]
[1733801630382,0.709558,211.44,211.34,42.48824018]
[1733801630687,0.709558,211.44,211.4,312.0]
[1733801631191,0.709558,211.44,211.38,42.48824018]
[1733801631593,0.709558,211.44,211.4,42.48824018]
[1733801631795,0.709558,211.44,211.42,42.48824018]
[1733801632089,13.189658,211.7,211.36,17.5715]
[1733801632090,13.189658,211.7,211.5,42.48824018]
[1733801632588,0.709558,211.7,211.5,42.48824018]
[1733801632785,0.709558,211.7,211.54,42.48824018]
[1733801633083,0.204,211.69,211.56,42.48824018]
[1733801633268,0.204,211.69,211.58,42.48824018]
[1733801633474,0.204,211.69,211.59,7.5715]
[1733801633875,0.204,211.69,211.6,42.48824018]
[1733801634075,0.204,211.69,211.59,7.5715]
[1733801634285,0.204,211.69,211.51,42.48824018]
[1733801634686,0.204,211.69,211.55,42.48824018]
[1733801634889,0.204,211.69,211.47,10.0]
[1733801635093,0.204,211.69,211.46,7.5715]
[1733801635869,0.204,211.69,211.46,42.48824018]
[1733801636076,0.204,211.69,211.51,42.48824018]
[1733801636371,0.204,211.69,211.53,42.48824018]
[1733801636778,0.204,211.69,211.59,42.48824018]
[1733801637080,0.204,211.69,211.61,42.48824018]
[1733801637280,0.204,211.69,211.63,42.48824018]
[1733801637592,0.204,211.69,211.61,42.48824018]
[1733801638020,0.204,211.69,211.59,50.05974018]
[1733801638409,0.204,211.69,211.55,42.48824018]
[1733801638574,0.204,211.69,211.59,42.48824018]
[1733801639074,0.204,211.69,211.57,42.48824018]
[1733801639696,0.204,211.69,211.61,42.48824018]
[1733801639889,0.204,211.69,211.63,42.48824018]
[1733801640288,0.204,211.69,211.65,42.48824018]
[1733801640505,0.204,211.69,211.6,42.48824018]
[1733801640696,0.204,211.69,211.64,42.48824018]
[1733801640902,0.204,211.69,211.58,42.48824018]
[1733801641200,0.204,211.69,211.62,42.48824018]
[1733801641700,0.204,211.69,211.66,42.48824018]
[1733801642010,0.204,211.69,211.68,42.48824018]
[1733801642913,0.204,211.69,211.6,42.48824018]
[1733801643079,0.204,211.69,211.35,52.0563]
[1733801643080,0.204,211.69,211.58,42.48824018]
[1733801643280,0.204,211.69,211.56,42.48824018]
[1733801643475,0.204,211.69,211.54,42.48824018]
[1733801644101,0.204,211.69,211.5,42.48824018]
[1733801644284,0.204,211.69,211.48,7.5715]
[1733801644285,10.2039,211.69,211.44,42.48824018]
[1733801644706,10.2039,211.69,211.48,42.48824018]
[1733801644707,0.204,211.69,211.48,42.48824018]
[1733801644892,0.204,211.69,211.52,42.48824018]
[1733801645093,0.204,211.69,211.54,42.48824018]
[1733801645298,0.204,211.69,211.62,42.48824018]
[1733801645973,0.204,211.69,211.68,42.48824018]
[1733801646199,12.4801,211.94,211.72,10.0]
[1733801646412,0.709558,211.96,211.85,42.48824018]
[1733801646706,0.709558,211.96,211.89,42.48824018]
[1733801646925,12.4801,212.19,211.95,84.97648036]
[1733801647101,12.4801,212.19,211.9,42.48824018]
[1733801647102,236.35047941,212.38,212.09,42.06303144]
[1733801647103,0.5339216,212.16,212.09,42.06303144]
[1733801647704,0.5339216,212.16,212.04,312.0]
[1733801647705,0.5339216,212.16,212.14,42.06303144]
[1733801647912,0.0339216,212.16,212.14,42.06303144]
[1733801648086,0.0339216,212.16,212.12,42.06303144]
[1733801648287,0.0339216,212.16,212.14,52.06303144]
[1733801648480,0.7001377,212.41,212.15,42.06303144]
[1733801648691,0.7001377,212.41,212.13,42.06303144]
[1733801648902,0.7001377,212.41,212.17,42.06303144]
[1733801649109,0.7001377,212.41,212.1,52.06303144]
[1733801649110,0.7001377,212.41,212.25,42.06303144]
[1733801649594,0.7001377,212.41,212.29,42.06303144]
[1733801649796,0.7001377,212.41,212.25,42.06303144]
[1733801649999,9.9999,212.4,212.04,7.5715]
[1733801650206,10.0,212.37,212.07,42.06303144]
[1733801650515,12.4801,212.36,212.11,42.06303144]
[1733801650694,12.4801,212.36,212.16,312.0]
[1733801650880,12.4801,212.36,212.15,42.06303144]
[1733801651085,12.4801,212.36,212.13,42.06303144]
[1733801651803,12.4801,212.36,212.07,10.0]
[1733801651804,9.9999,212.35,212.04,49.63453144]
[1733801651986,19.9999,212.35,212.04,49.63453144]
[1733801652198,12.4801,212.36,212.09,42.06303144]
[1733801652386,12.4801,212.36,212.13,42.06303144]
[1733801653004,12.4801,212.36,212.07,42.06303144]
[1733801653398,10.0,212.35,212.05,42.06303144]
[1733801653821,10.0,212.31,212.04,7.5715]
[1733801653985,10.0,212.31,212.01,42.06303144]
[1733801654192,10.0,212.29,211.98,42.06303144]
[1733801654396,248.83057941,212.36,212.06,42.06303144]
[1733801654694,248.83057941,212.36,212.08,42.06303144]
[1733801654695,12.4801,212.36,212.08,42.06303144]
[1733801654904,12.4801,212.36,212.1,42.06303144]
[1733801655099,12.4801,212.36,212.08,42.06303144]
[1733801655286,12.4801,212.36,212.07,10.0]
[1733801655481,12.4801,212.36,212.06,10.0]
[1733801655482,12.4801,212.36,212.12,42.06303144]
[1733801656519,0.7001377,212.41,212.16,42.06303144]
[1733801656898,0.7001377,212.41,212.15,42.06303144]
[1733801657097,0.7001377,212.41,212.11,42.06303144]
[1733801657301,0.7001377,212.41,212.22,42.06303144]
[1733801657531,0.7001377,212.41,212.2,42.06303144]
[1733801657734,0.7001377,212.41,212.18,42.06303144]
[1733801658040,10.0,212.37,212.12,7.6265]
[1733801658199,10.0,212.36,212.08,42.06303144]
[1733801658396,10.0,212.36,212.1,42.06303144]
[1733801658706,0.7001377,212.41,212.2,42.06303144]
[1733801658907,0.7001377,212.41,212.24,42.06303144]